bitfinex/quotes_SOLUSD_20241008
["timestamp","ask_amount","ask_price","bid_price","bid_amount"]
[1728375444477,7.823057,143.3,143.26,17.4503]
[1728375445201,1.21515434,143.29,143.26,17.4503]
[1728375445505,8.19405434,143.29,143.25,6.9804]
[1728375445878,8.19405434,143.29,143.24,26.9811]
[1728375447379,8.19405434,143.29,143.24,20.0]
[1728375447575,8.19405434,143.29,143.25,6.9807]
[1728375449875,1.21515434,143.29,143.25,6.9807]
[1728375450904,1.21515434,143.29,143.26,6.9802]
[1728375452204,7.823157,143.3,143.25,24.4321]
[1728375453577,7.823157,143.3,143.23,0.12549]
[1728375453578,6.9798,143.27,143.23,6.9813]
[1728375453771,23.776884,143.29,143.19,52.3769]
[1728375454006,6.9817,143.24,143.19,24.442]
[1728375454173,17.4492,143.28,143.19,24.442]
[1728375454376,17.4492,143.28,143.2,6.9832]
[1728375454600,6.9813,143.24,143.2,6.9832]
[1728375455298,1.21556606,143.23,143.2,6.9832]
[1728375455499,1.21556606,143.23,143.19,17.4585]
[1728375455799,6.9823,143.22,143.17,6.9846]
[1728375455973,6.9823,143.22,143.18,6.984]
[1728375456601,6.9828,143.21,143.16,24.4477]
[1728375456797,6.9828,143.21,143.17,20.0]
[1728375457614,6.9828,143.21,143.17,6.9846]
[1728375458699,6.9823,143.22,143.17,6.9846]
[1728375459098,6.9823,143.22,143.18,8.38075507]
[1728375459400,1.21556606,143.23,143.2,6.9832]
[1728375459601,1.21556606,143.23,143.2,8.37955423]
[1728375460681,1.21556606,143.23,143.2,6.9832]
[1728375461504,6.9809,143.25,143.2,6.9832]
[1728375461704,21.9948,143.27,143.2,6.9832]
[1728375461883,6.9813,143.24,143.2,6.9832]
[1728375462084,21.9948,143.27,143.21,1.39630289]
[1728375462312,0.844657,143.3,143.21,1.39630289]
[1728375462606,0.844657,143.3,143.22,0.25098]
[1728375462799,0.844657,143.3,143.22,25.42364746]
[1728375463193,0.844657,143.3,143.25,6.9806]
[1728375464079,6.9788,143.29,143.25,6.9806]
[1728375464382,0.844657,143.3,143.22,0.25098]
[1728375464586,0.844657,143.3,143.24,6.9812]
[1728375464587,6.9794,143.28,143.24,6.9812]
[1728375465008,7.823157,143.3,143.25,6.9806]
[1728375465714,7.823157,143.3,143.23,17.4539]
[1728375465914,7.823157,143.3,143.26,6.9802]
[1728375466089,6.9788,143.29,143.25,6.9806]
[1728375466282,6.9796,143.28,143.23,24.4353]
[1728375466482,0.844657,143.3,143.23,24.4353]
[1728375466709,6.9807,143.26,143.22,7.23308]
[1728375467000,6.9799,143.27,143.22,0.25098]
[1728375467210,6.9799,143.27,143.23,6.9817]
[1728375467585,6.9799,143.27,143.24,1.39599225]
[1728375467780,0.844657,143.3,143.23,6.9817]
[1728375467781,6.9794,143.28,143.23,6.9817]
[1728375468000,6.9794,143.28,143.24,6.9812]
[1728375472387,0.844657,143.3,143.25,1.39592511]
[1728375472594,0.844657,143.3,143.25,0.25098]
[1728375473111,0.844657,143.3,143.27,6.9797]
[1728375473613,0.844657,143.3,143.28,6.9792]
[1728375473787,0.844657,143.3,143.26,17.4503]
[1728375473996,0.844657,143.3,143.29,6.9788]
[1728375474188,0.844657,143.3,143.29,8.37428479]
[1728375474389,0.844657,143.3,143.29,6.9788]
[1728375475193,0.844657,143.3,143.29,8.37416912]
[1728375477313,0.844657,143.3,143.29,8.49965912]
[1728375478014,0.844657,143.3,143.29,52.40203312]
[1728375478235,0.844657,143.3,143.29,65.5123778]
[1728375479296,0.844657,143.3,143.29,65.51208796]
[1728375479717,0.844657,143.3,143.29,71.02465051]
[1728375480014,0.844657,143.3,143.29,69.62957123]
[1728375480915,22.4142,143.39,143.33,17.4412]
[1728375481218,22.4142,143.39,143.35,6.9759]
[1728375481518,22.4142,143.39,143.34,6.9762]
[1728375481815,15.4401,143.39,143.33,24.418]
[1728375482015,6.9751,143.37,143.33,17.4412]
[1728375482814,15.4401,143.39,143.29,93.776884]
[1728375483122,23.776884,143.37,143.29,17.4461]
[1728375483997,6.977,143.33,143.29,24.4247]
[1728375484212,23.776884,143.37,143.29,17.4461]
[1728375484409,15.4401,143.39,143.3,1.39522104]
[1728375484626,6.9749,143.37,143.32,6.9769]
[1728375486619,6.9749,143.37,143.33,6.9768]
[1728375487123,6.9749,143.37,143.34,1.39498794]
[1728375487599,6.9746,143.38,143.34,1.39498794]
[1728375487999,6.975,143.37,143.33,6.9768]
[1728375488607,1.21454682,143.36,143.33,6.9768]
[1728375488809,1.21454682,143.36,143.34,1.39499459]
[1728375489413,1.21454682,143.36,143.33,6.9768]
[1728375490103,1.21454682,143.36,143.34,1.39499625]
[1728375490729,1.21454682,143.36,143.33,6.9768]
[1728375491917,1.21454682,143.36,143.34,1.39499906]
[1728375492416,1.21454682,143.36,143.33,6.9768]
[1728375493623,6.975,143.37,143.33,6.9768]
[1728375495323,6.975,143.37,143.34,1.39499334]
[1728375495631,6.975,143.37,143.33,6.9768]
[1728375496730,1.21454258,143.36,143.33,6.9768]
[1728375497208,1.21454258,143.36,143.31,17.56899]
[1728375497414,1.21454258,143.36,143.32,6.9772]
[1728375498014,1.21454258,143.36,143.31,18.96406154]
[1728375498216,1.21454258,143.36,143.33,6.9768]
[1728375498523,1.21454258,143.36,143.34,1.39502586]
[1728375499733,1.21454258,143.36,143.31,107.01271868]
[1728375500032,15.4401,143.39,143.36,6.975]
[1728375500326,16.2539,143.42,143.37,1.39477818]
[1728375500514,6.9733,143.41,143.37,1.39477818]
[1728375501436,6.9735,143.4,143.37,1.39477818]
[1728375502118,6.9735,143.4,143.36,6.975]
[1728375504529,6.9731,143.41,143.35,17.4394]
[1728375504733,6.9731,143.41,143.36,6.9751]
[1728375505428,16.2539,143.42,143.33,20.0]
[1728375505429,33.6857,143.42,143.33,20.0]
[1728375505634,6.9748,143.38,143.34,6.9762]
[1728375505816,23.776884,143.41,143.32,17.4427]
[1728375506022,6.9754,143.36,143.32,24.4197]
[1728375506324,6.9754,143.36,143.32,17.4427]
[1728375507026,6.9759,143.35,143.32,17.4427]
[1728375507421,23.776884,143.39,143.32,17.4427]
[1728375507635,6.9755,143.36,143.32,24.42]
[1728375508338,6.9751,143.37,143.32,24.42]
[1728375508634,6.9751,143.37,143.33,6.9768]
[1728375509818,6.9751,143.37,143.32,24.42]
[1728375510025,6.9759,143.35,143.29,17.4466]
[1728375510230,16.0447,143.37,143.3,20.0]
[1728375510933,6.977,143.33,143.29,24.4253]
[1728375511345,6.9774,143.32,143.29,17.4466]
[1728375511515,6.9779,143.31,143.26,17.4502]
[1728375511717,6.9779,143.31,143.26,24.4301]
[1728375512138,6.9779,143.31,143.27,6.9797]
[1728375512445,6.9775,143.32,143.27,6.9797]
[1728375513331,6.9784,143.3,143.26,24.4304]
[1728375513719,6.9784,143.3,143.26,17.4502]
[1728375514920,15.5133,143.31,143.26,24.4303]
[1728375515134,15.5133,143.31,143.27,1.39571109]
[1728375515343,15.5133,143.31,143.27,8.37511109]
[1728375515763,22.4913,143.31,143.27,6.9794]
[1728375518248,15.5133,143.31,143.28,6.9793]
[1728375518628,15.5133,143.31,143.27,6.9796]
[1728375520154,15.5133,143.31,143.28,6.9792]
[1728375522255,6.9775,143.32,143.28,6.9792]
[1728375522960,1.21503448,143.32,143.29,8.37408808]
[1728375523279,13.2839,143.36,143.31,6.9774]
[1728375523453,13.2839,143.36,143.32,6.9772]
[1728375524652,6.3084,143.36,143.31,4.01169591]
[1728375524948,6.976,143.35,143.31,10.98939591]
[1728375525329,13.284,143.36,143.31,10.98698283]
[1728375527556,6.9756,143.36,143.31,10.98698283]
[1728375528635,6.9756,143.36,143.31,10.98385239]
[1728375529752,16.2852,143.38,143.31,10.98385239]
[1728375529954,16.2852,143.38,143.3,24.4236]
[1728375529955,6.9764,143.34,143.3,24.4236]
[1728375530844,23.776884,143.37,143.31,4.00617263]
[1728375531035,6.976,143.35,143.31,10.98397263]
[1728375531758,6.976,143.35,143.31,16.5017694]
[1728375531959,23.776884,143.37,143.31,5.51779677]
[1728375532261,6.9782,143.31,143.27,24.4284]
[1728375534443,6.9782,143.31,143.28,5.52962164]
[1728375535160,6.9775,143.32,143.28,5.52945445]
[1728375535857,6.9774,143.32,143.28,12.50865445]
[1728375536265,6.9774,143.32,143.28,6.9792]
[1728375536857,6.9774,143.32,143.28,12.46109502]
[1728375537663,6.977,143.33,143.29,8.37441187]
[1728375538054,6.977,143.33,143.29,1.39561187]
[1728375538455,30.753384,143.34,143.3,6.9783]
[1728375538659,7.29253232,143.35,143.3,6.9783]
[1728375538660,6.976,143.35,143.31,6.9778]
[1728375539038,6.976,143.35,143.3,12.45771147]
[1728375539259,6.976,143.35,143.3,6.9782]
[1728375539466,6.976,143.35,143.31,6.9778]
[1728375540363,6.9755,143.36,143.31,6.9778]
[1728375540566,6.9755,143.36,143.31,12.45431576]
[1728375540773,23.776884,143.37,143.31,12.45431576]
[1728375540956,6.9759,143.35,143.31,12.45431576]
[1728375541853,6.9759,143.35,143.31,6.9778]
[1728375542052,6.9759,143.35,143.31,12.45487211]
[1728375542263,6.9759,143.35,143.31,5.47707211]
[1728375542455,23.776884,143.37,143.31,5.47707211]
[1728375542667,6.9764,143.34,143.3,6.9781]
[1728375542854,6.9764,143.34,143.31,5.47773364]
[1728375543168,6.9764,143.34,143.3,12.45677008]
[1728375543381,6.976,143.35,143.31,6.9776]
[1728375543552,6.9755,143.36,143.32,8.37215236]
[1728375543752,23.57643796,143.38,143.32,6.87434081]
[1728375543753,16.2852,143.38,143.32,6.87434081]
[1728375543957,16.2852,143.38,143.35,6.9758]
[1728375544159,16.2852,143.38,143.36,1.39493245]
[1728375544479,6.974,143.39,143.34,12.45401229]
[1728375544776,7.35234644,143.4,143.34,12.45401229]
[1728375544971,6.9746,143.38,143.34,6.9759]
[1728375545810,6.9746,143.38,143.34,12.45099842]
[1728375546073,30.750984,143.39,143.34,12.45099842]
[1728375546273,1.21454644,143.4,143.34,5.47509842]
[1728375546482,39.93833744,143.42,143.34,5.47509842]
[1728375546483,6.9731,143.41,143.37,6.9748]
[1728375546851,6.9731,143.41,143.36,6.9753]
[1728375549149,6.9742,143.39,143.35,17.439]
[1728375549569,6.9742,143.39,143.35,24.4147]
[1728375553183,6.9731,143.41,143.37,6.9748]
[1728375553554,22.1895,143.42,143.38,1.39476601]
[1728375554167,6.9726,143.42,143.38,8.36916601]
[1728375555555,6.9732,143.41,143.37,24.4116]
[1728375556561,6.9732,143.41,143.37,17.4368]
[1728375556770,6.9735,143.4,143.36,6.9753]
[1728375557058,6.974,143.39,143.35,6.9757]
[1728375557263,6.974,143.39,143.34,40.3539]
[1728375557463,6.9738,143.4,143.35,6.9755]
[1728375558396,6.974,143.39,143.34,40.3538]
[1728375560509,6.9749,143.37,143.33,6.9768]
[1728375560679,6.9759,143.35,143.31,22.90600332]
[1728375560989,6.9759,143.35,143.3,21.1901]
[1728375560990,6.9764,143.34,143.3,22.1202]
[1728375561186,6.9764,143.34,143.3,6.9783]
[1728375561387,6.976,143.35,143.3,6.9783]
[1728375563766,6.976,143.35,143.31,1.39541255]
[1728375565695,6.976,143.35,143.3,6.9783]
[1728375566991,6.976,143.35,143.3,8.37371636]
[1728375567996,6.976,143.35,143.3,6.9783]
[1728375570395,23.902374,143.37,143.28,24.4267]
[1728375570600,6.9775,143.32,143.28,24.4267]
[1728375570768,6.9775,143.32,143.28,17.4478]
[1728375570973,6.9775,143.32,143.28,24.427]
[1728375571294,6.9775,143.32,143.28,25.82264566]
[1728375571500,6.9775,143.32,143.28,18.84344566]
[1728375571703,6.9775,143.32,143.28,17.4478]
[1728375571996,6.9769,143.33,143.28,25.82236652]
[1728375572372,17.4392,143.36,143.28,18.84346652]
[1728375572571,6.9764,143.34,143.3,6.9783]
[1728375572793,6.9757,143.36,143.31,6.9778]
[1728375572998,6.9755,143.36,143.3,17.4451]
[1728375573297,7.29111263,143.38,143.32,6.9772]
[1728375573476,6.9752,143.37,143.32,6.9772]
[1728375573985,8.18994183,143.37,143.32,6.9772]
[1728375574497,8.18994183,143.37,143.33,8.37201487]
[1728375574702,1.21474183,143.37,143.33,6.9767]
[1728375576096,8.18974183,143.37,143.33,6.9767]
[1728375576499,6.9756,143.36,143.32,17.4429]
[1728375578776,23.776884,143.36,143.31,6.2908]
[1728375578976,23.776884,143.36,143.3,12.44981453]
[1728375579289,23.776884,143.36,143.3,12.45054891]
[1728375579703,23.776884,143.36,143.3,8.37362744]
[1728375579888,6.976,143.35,143.31,6.9778]
[1728375580205,6.976,143.35,143.32,1.3952835]
[1728375580387,1.21474183,143.37,143.31,17.4443]
[1728375580388,8.19004183,143.37,143.31,17.4443]
[1728375580590,6.9755,143.36,143.32,6.9772]
[1728375582094,6.9762,143.35,143.31,24.4221]
[1728375582494,6.9755,143.36,143.32,1.39526665]
[1728375582796,6.9755,143.36,143.31,24.4221]
[1728375584471,23.776884,143.39,143.32,16.57431802]
[1728375584695,6.9745,143.38,143.33,6.9767]
[1728375585001,6.975,143.37,143.33,6.9767]
[1728375588905,6.975,143.37,143.33,8.37182694]
[1728375589113,6.975,143.37,143.33,6.9767]
[1728375589306,6.975,143.37,143.34,1.3951272]
[1728375589603,23.776884,143.39,143.34,1.3951272]
[1728375589783,20.0,143.42,143.34,1.3951272]
[1728375590311,6.9743,143.39,143.34,6.9762]
[1728375591093,23.776884,143.4,143.33,6.5658]
[1728375591299,6.9743,143.39,143.35,6.9758]
[1728375591598,23.776884,143.4,143.33,24.0074]
[1728375591806,6.975,143.37,143.33,6.5658]
[1728375592306,6.975,143.37,143.33,13.5425]
[1728375593700,6.975,143.37,143.33,19.01423512]
[1728375593900,6.975,143.37,143.33,13.5425]
[1728375594284,6.975,143.37,143.33,19.01674349]
[1728375595303,23.776884,143.4,143.33,19.01674349]
[1728375595481,6.9746,143.38,143.34,8.37137395]
[1728375595986,23.776884,143.4,143.35,6.9754]
[1728375595987,30.750584,143.4,143.35,6.9754]
[1728375596186,6.974,143.39,143.35,6.9754]
[1728375596608,6.974,143.39,143.34,18.83527395]
[1728375596782,6.974,143.39,143.34,25.81157395]
[1728375597494,6.9745,143.38,143.34,25.81157395]
[1728375597995,6.9735,143.4,143.36,6.9754]
[1728375598328,6.9735,143.4,143.36,8.37031491]
[1728375598878,6.9735,143.4,143.35,6.9758]
[1728375599496,6.974,143.39,143.35,6.9758]
[1728375600316,23.776884,143.42,143.36,6.9754]
[1728375600487,6.9733,143.41,143.37,6.9749]
[1728375600884,6.9733,143.41,143.36,24.4135]
[1728375601582,6.9735,143.4,143.36,24.4135]
[1728375602219,31.96411573,143.42,143.37,6.9748]
[1728375602509,6.9731,143.41,143.37,6.9748]
[1728375602713,6.9731,143.41,143.37,8.36961586]
[1728375603400,6.9721,143.43,143.38,6.974]
[1728375603732,7.816357,143.44,143.4,6.9733]
[1728375604013,0.844657,143.44,143.4,6.9733]
[1728375604808,0.844657,143.44,143.41,1.39452415]
[1728375605190,0.844657,143.44,143.43,6.972]
[1728375606211,0.844657,143.44,143.43,8.36627346]
[1728375606396,0.844657,143.44,143.42,6.9724]
[1728375607215,0.844657,143.44,143.43,8.36617946]
[1728375607811,0.844657,143.44,143.43,6.972]
[1728375608019,0.844657,143.44,143.41,17.4322]
[1728375608206,6.9726,143.42,143.38,30.8088]
[1728375610551,6.9732,143.41,143.37,22.4202]
[1728375611620,6.9726,143.42,143.37,22.4202]
[1728375614919,23.776884,143.41,143.37,15.4453]
[1728375615126,23.776884,143.43,143.36,6.9752]
[1728375615995,6.9735,143.4,143.36,6.9752]
[1728375616192,6.974,143.39,143.35,17.4392]
[1728375616419,23.776884,143.43,143.33,15.5748]
[1728375616420,6.9745,143.38,143.33,15.5748]
[1728375616806,6.9745,143.38,143.33,22.5513]
[1728375618440,15.2166,143.41,143.33,6.9765]
[1728375618615,6.9754,143.36,143.32,17.4427]
[1728375619826,6.9754,143.36,143.32,24.42]
[1728375620347,23.776884,143.37,143.32,24.42]
[1728375620526,30.751884,143.37,143.32,24.42]
[1728375621045,23.776884,143.37,143.34,6.9763]
[1728375622035,23.776884,143.37,143.33,6.9767]
[1728375623143,23.776884,143.37,143.32,17.4427]
[1728375623354,6.9745,143.38,143.35,6.9758]
[1728375623355,23.776884,143.38,143.35,6.9758]
[1728375623642,6.9735,143.4,143.36,8.37031927]
[1728375624852,22.1896,143.41,143.37,8.3696567]
[1728375625030,32.03385463,143.44,143.37,8.3696567]
[1728375625031,6.9726,143.42,143.37,8.3696567]
[1728375625450,6.9726,143.42,143.37,1.3948567]
[1728375625631,6.9726,143.42,143.38,6.9744]
[1728375626145,23.776884,143.41,143.37,8.3694567]
[1728375626534,7.816557,143.44,143.39,6.9736]
[1728375627031,6.9721,143.43,143.38,24.4099]
[1728375628051,23.776884,143.42,143.38,24.4099]
[1728375628640,6.9721,143.43,143.38,24.4099]
[1728375629034,23.776884,143.43,143.35,26.9757]
[1728375629550,6.9736,143.4,143.35,26.9757]
[1728375630057,6.9736,143.4,143.36,6.9753]
[1728375630539,23.776884,143.43,143.34,33.479]
[1728375630746,6.9743,143.39,143.34,40.4552]
[1728375632452,17.4324,143.42,143.32,6.977]
[1728375632629,6.975,143.37,143.33,6.9768]
[1728375633066,6.9755,143.36,143.32,10.98659093]
[1728375633653,6.9769,143.33,143.32,4.00939093]
[1728375633851,6.9765,143.34,143.31,22.7369]
[1728375634738,23.776884,143.37,143.31,22.7369]
[1728375635045,6.976,143.35,143.31,22.7369]
[1728375635237,30.753584,143.34,143.3,4.012109]
[1728375635545,6.9778,143.31,143.3,4.012109]
[1728375635730,23.776884,143.35,143.3,4.012109]
[1728375635934,23.776884,143.33,143.3,4.012109]
[1728375636166,30.753884,143.33,143.3,4.012109]
[1728375637157,6.9776,143.32,143.3,4.012109]
[1728375638946,30.754684,143.31,143.3,4.012109]
[1728375640479,30.754684,143.31,143.27,17.449]
[1728375641764,23.776884,143.31,143.24,21.9458]
[1728375641961,6.9784,143.3,143.26,6.9802]
[1728375642663,23.776884,143.31,143.24,17.4532]
[1728375642870,6.9798,143.27,143.24,17.4532]
[1728375643167,6.9798,143.27,143.21,21.6245]
[1728375643168,23.776884,143.31,143.21,39.0811]
[1728375643341,6.9794,143.28,143.24,6.9812]
[1728375644249,6.9794,143.28,143.21,39.0811]
[1728375644556,23.776884,143.27,143.23,6.9816]
[1728375644758,30.756684,143.27,143.22,6.9821]
[1728375644943,6.9804,143.26,143.22,6.9821]
[1728375646740,23.902374,143.28,143.18,37.4598]
[1728375646939,23.902374,143.28,143.19,6.9833]
[1728375646940,6.9814,143.24,143.19,6.9833]
[1728375648262,23.776884,143.23,143.12,50.0]
[1728375648476,6.9831,143.21,143.17,6.9846]
[1728375648972,23.776884,143.2,143.16,6.985]
[1728375649343,6.9831,143.21,143.17,8.38137711]
[1728375649547,30.758184,143.24,143.17,18.85787711]
[1728375649776,23.776884,143.24,143.17,17.4611]
[1728375650078,6.9828,143.21,143.17,24.4456]
[1728375650549,6.9823,143.22,143.17,17.4611]
[1728375650750,6.9823,143.22,143.18,6.984]
[1728375650952,23.776884,143.24,143.17,17.4611]
[1728375651271,6.9827,143.21,143.17,17.4611]
[1728375652852,6.9832,143.2,143.17,17.4611]
[1728375654174,6.9828,143.21,143.17,17.4611]
[1728375654971,23.776884,143.22,143.18,6.9837]
[1728375655375,30.759184,143.22,143.18,6.9837]
[1728375657687,23.776884,143.22,143.18,6.9837]
[1728375659062,23.776884,143.22,143.17,17.4611]
[1728375659063,6.9832,143.2,143.17,17.4611]
[1728375659265,6.9832,143.2,143.15,6.9855]
[1728375659678,23.776884,143.19,143.15,6.9855]
[1728375660371,6.9828,143.21,143.16,6.9848]
[1728375660589,6.9822,143.22,143.18,6.9842]
[1728375660957,6.9813,143.24,143.19,1.39662189]
[1728375661272,7.28469939,143.25,143.15,0.25098]
[1728375661273,6.9809,143.25,143.21,6.9825]
[1728375661582,1.21497833,143.26,143.16,6.223]
[1728375661761,16.3195,143.3,143.24,6.9809]
[1728375661762,7.28326425,143.29,143.24,6.9809]
[1728375661961,6.9798,143.27,143.23,6.9817]
[1728375662662,16.3195,143.3,143.19,17.4585]
[1728375662858,16.3195,143.3,143.18,0.12549]
[1728375662859,6.9804,143.26,143.22,6.9821]
[1728375663786,16.3195,143.3,143.2,20.0]
[1728375663787,6.9813,143.24,143.2,6.9828]
[1728375664290,23.776884,143.23,143.2,6.9828]
[1728375665291,23.776884,143.23,143.19,6.9835]
[1728375665485,30.758684,143.23,143.19,6.9835]
[1728375667777,37.57349,143.29,143.2,6.9832]
[1728375667984,23.902374,143.28,143.2,8.379682]
[1728375668291,37.57349,143.29,143.18,17.4598]
[1728375668292,6.9798,143.27,143.23,6.9816]
[1728375668681,6.9794,143.28,143.24,6.9812]
[1728375668985,6.9798,143.27,143.23,6.9817]
[1728375669873,30.756284,143.28,143.23,8.37790947]
[1728375670468,30.756284,143.28,143.23,6.9817]
[1728375670663,23.776884,143.28,143.23,6.9817]
[1728375670885,6.9799,143.27,143.23,6.9817]
[1728375671401,30.756184,143.28,143.24,6.9811]
[1728375671571,6.9789,143.29,143.25,8.37671883]
[1728375671770,6.9779,143.31,143.27,6.9797]
[1728375671989,16.1538,143.33,143.25,1.39601883]
[1728375671990,6.9777,143.32,143.28,6.9792]
[1728375672372,6.9777,143.32,143.27,1.39576027]
[1728375672373,6.9777,143.32,143.27,6.9797]
[1728375673475,6.9779,143.31,143.27,6.9797]
[1728375674186,6.9779,143.31,143.26,24.4303]
[1728375675786,6.9789,143.29,143.24,26.9812]
[1728375677090,6.9784,143.3,143.26,6.9801]
[1728375677271,23.776884,143.32,143.26,6.9801]
[1728375677472,6.978,143.31,143.27,6.9798]
[1728375678975,6.9784,143.3,143.26,6.9802]
[1728375682386,6.978,143.31,143.26,6.9802]
[1728375687301,30.754084,143.33,143.28,6.979]
[1728375687488,23.776884,143.32,143.29,1.39569557]
[1728375687691,23.776884,143.32,143.29,8.37449557]
[1728375688000,30.754284,143.32,143.28,6.9791]
[1728375689212,6.977,143.33,143.28,6.9791]
[1728375690300,6.977,143.33,143.29,6.9787]
[1728375690500,30.753384,143.34,143.3,6.9782]
[1728375690711,23.776884,143.35,143.31,6.9774]
[1728375690905,1.21441461,143.39,143.31,6.9774]
[1728375690906,1.21441461,143.39,143.32,1.39541599]
[1728375691198,1.21441461,143.39,143.35,6.9759]
[1728375691199,8.50144933,143.39,143.35,6.9759]
[1728375691381,1.21441461,143.39,143.35,6.9759]
[1728375691775,8.18841461,143.39,143.35,6.9759]
[1728375691973,8.18871461,143.39,143.34,6.976]
[1728375693185,23.776884,143.38,143.34,6.976]
[1728375694887,23.776884,143.38,143.33,24.4184]
[1728375695116,23.776884,143.38,143.32,6.6084]
[1728375695281,6.9758,143.36,143.32,6.6084]
[1728375695601,6.976,143.35,143.32,6.6084]
[1728375695812,6.9765,143.34,143.3,17.4453]
[1728375695978,6.9765,143.34,143.28,22.3318]
[1728375695979,6.9774,143.32,143.28,22.3318]
[1728375696391,23.776884,143.35,143.27,17.4488]
[1728375696392,6.9779,143.31,143.27,17.4488]
[1728375697399,6.9791,143.29,143.24,47.6918]
[1728375697618,6.9795,143.28,143.24,40.7107]
[1728375697905,6.9797,143.28,143.24,47.6918]
[1728375698212,21.21408677,143.32,143.25,8.37661209]
[1728375698414,23.776884,143.31,143.27,6.9795]
[1728375699693,30.754784,143.31,143.27,6.9795]
[1728375699896,30.754784,143.31,143.26,6.9801]
[1728375701313,6.9794,143.28,143.24,40.7107]
[1728375701618,23.776884,143.31,143.24,40.7107]
[1728375701820,6.9789,143.29,143.24,47.6918]
[1728375705017,6.9799,143.27,143.24,23.2578]
[1728375705395,6.9799,143.27,143.22,26.9821]
[1728375705595,6.9799,143.27,143.22,6.9821]
[1728375706024,6.9808,143.25,143.21,39.0798]
[1728375706323,6.9818,143.23,143.18,24.444]
[1728375706498,6.9814,143.24,143.18,17.4599]
[1728375706701,23.776884,143.26,143.18,4.00903534]
[1728375706911,30.757184,143.26,143.22,6.9821]
[1728375707097,6.9799,143.27,143.18,50.0]
[1728375707299,43.65911207,143.37,143.24,6.9811]
[1728375707300,23.776884,143.28,143.24,6.9811]
[1728375707801,6.9784,143.3,143.25,8.37644081]
[1728375707995,6.9784,143.3,143.25,6.9804]
[1728375708408,6.9789,143.29,143.25,6.9804]
[1728375708703,6.9789,143.29,143.25,8.37640759]
[1728375709218,23.776884,143.28,143.25,8.37640759]
[1728375709807,6.9785,143.3,143.25,8.37640759]
[1728375710029,23.776884,143.29,143.25,8.37640759]
[1728375710402,30.755784,143.29,143.25,6.9804]
[1728375711828,6.9784,143.3,143.26,6.9801]
[1728375712007,30.754784,143.31,143.24,17.4522]
[1728375712212,30.754784,143.31,143.27,6.9797]
[1728375712423,23.776884,143.32,143.29,6.9787]
[1728375712730,6.9772,143.33,143.28,24.4271]
[1728375713035,6.977,143.33,143.29,8.37448876]
[1728375713240,1.21415937,143.35,143.3,18.8407049]
[1728375713408,17.4357,143.39,143.31,6.9777]
[1728375713609,1.21389128,143.36,143.3,17.4452]
[1728375713905,17.4357,143.39,143.3,17.4452]
[1728375714101,6.9767,143.34,143.3,17.4452]
[1728375714529,6.9767,143.34,143.3,24.4235]
[1728375715031,6.9759,143.35,143.3,17.4452]
[1728375715241,6.9756,143.36,143.31,8.37308084]
[1728375715531,21.21388492,143.38,143.3,17.4452]
[1728375716730,23.776884,143.37,143.3,17.4452]
[1728375717026,6.9761,143.35,143.31,6.9777]
[1728375717930,6.9761,143.35,143.3,17.4452]
[1728375718132,6.9764,143.34,143.3,17.4452]
[1728375719329,23.776884,143.33,143.3,17.4452]
[1728375722438,6.9764,143.34,143.3,25.81900883]
[1728375722735,6.9764,143.34,143.3,24.4235]
[1728375723240,6.9764,143.34,143.3,17.4452]
[1728375723412,6.9769,143.33,143.3,17.4452]
[1728375723812,23.776884,143.37,143.31,1.39551096]
[1728375724111,17.4319,143.42,143.32,1.39535849]
[1728375724419,6.9743,143.39,143.35,6.9757]
[1728375725330,6.9736,143.4,143.35,6.9757]